fUST/lending_fUST_20240809
["ID","MTS","AMOUNT","RATE_DAILY","PERIOD"]
[334555258,1723203041450,-500.0,0.00021917,7]
[334555259,1723203041460,-504.03504906,0.00021917,7]
[334555260,1723203041469,-504.1579692,0.00021917,7]
[334555261,1723203041478,-524.95767074,0.00021917,7]
[334555262,1723203041488,-500.0,0.00021917,7]
[334555263,1723203041498,-500.0,0.00021917,7]
[334555264,1723203041507,-625.38,0.00021917,7]
[334555265,1723203041516,-500.0,0.00021917,7]
[334555266,1723203041526,-566.72,0.00021917,7]
[334555267,1723203041537,-500.0,0.00021917,7]
[334555268,1723203041546,-500.0,0.00021917,7]
[334555269,1723203041556,-500.0,0.00021917,7]
[334555270,1723203041565,-500.0,0.00021917,7]
[334555271,1723203041575,-500.0,0.00021917,7]
[334555272,1723203041585,-500.0,0.00021917,7]
[334555273,1723203041595,-500.0,0.00021917,7]
[334555274,1723203041605,-500.0,0.00021917,7]
[334555275,1723203041615,-502.67089019,0.00021917,7]
[334555276,1723203041624,-151.0,0.00021917,2]
[334555277,1723203041634,-151.0,0.00021917,2]
[334555278,1723203041645,-279.813592,0.00021917,2]
[334555279,1723203041656,-501.6682948,0.00021917,7]
[334555280,1723203041666,-484.66442038,0.00021917,7]
[334555281,1723203041860,-179.22557962,0.00021917,7]
[334555282,1723203041869,-500.0,0.00021917,7]
[334555283,1723203041879,-500.0,0.00021917,7]
[334555284,1723203041888,-33.97442038,0.00021917,7]
[334555289,1723203042271,-309.44300337,0.0002,2]
[334555290,1723203042281,-468.25548179,0.00021917,7]
[334555291,1723203042290,-500.0,0.00021917,7]
[334555292,1723203042299,-500.0,0.00021917,7]
[334555293,1723203042308,-500.0,0.00021917,7]
[334555294,1723203042317,-500.0,0.00021917,7]
[334555295,1723203042328,-507.29360755,0.00021917,7]
[334555296,1723203042337,-500.0,0.00021917,7]
[334555297,1723203042347,-806.11,0.00021917,7]
[334555298,1723203042357,-500.0,0.00021917,7]
[334555299,1723203042366,-521.43,0.00021917,7]
[334555300,1723203042376,-151.0,0.00021917,2]
[334555302,1723203042385,-171.052786,0.00021917,2]
[334555304,1723203042396,-596.84,0.00021917,7]
[334555306,1723203042406,-500.0,0.00021917,7]
[334555308,1723203042415,-500.0,0.00021917,7]
[334555310,1723203042425,-751.2,0.00021917,7]
[334555311,1723203042434,-503.30211264,0.00021917,7]
[334555312,1723203042444,-231.598633,0.00021917,2]
[334555313,1723203042454,-231.598633,0.00021917,2]
[334555314,1723203042464,-231.598633,0.00021917,2]
[334555315,1723203042473,-231.598633,0.00021917,2]
[334555316,1723203042482,-231.598633,0.00021917,2]
[334555317,1723203042492,-231.598633,0.00021917,2]
[334555319,1723203042501,-231.598633,0.00021917,2]
[334555320,1723203042511,-231.598633,0.00021917,2]
[334555321,1723203042520,-231.598633,0.00021917,2]
[334555322,1723203042530,-507.53478463,0.00021917,7]
[334555323,1723203042540,-231.598633,0.00021917,2]
[334555324,1723203042550,-231.598633,0.00021917,2]
[334555325,1723203042561,-231.598633,0.00021917,2]
[334555326,1723203042572,-889.42,0.00021917,7]
[334555327,1723203042581,-231.598633,0.00021917,2]
[334555328,1723203042592,-231.598633,0.00021917,2]
[334555329,1723203042602,-500.0,0.00021917,7]
[334555330,1723203042612,-231.598633,0.00021917,2]
[334555331,1723203042621,-231.598633,0.00021917,2]
[334555333,1723203042632,-231.598633,0.00021917,2]
[334555334,1723203042642,-231.598638,0.00021917,2]
[334555335,1723203042653,-502.44701498,0.00021917,7]
[334555336,1723203042663,-446.15204924,0.00021917,7]
[334555337,1723203042673,-500.0,0.00021917,7]
[334555339,1723203042683,-507.62688738,0.00021917,7]
[334555340,1723203042695,-500.0,0.00021917,7]
[334555341,1723203042704,-500.0,0.00021917,7]
[334555342,1723203042714,-500.0,0.00021917,7]
[334555343,1723203042724,-500.0,0.00021917,7]
[334555344,1723203042735,-171.36254841,0.00021917,7]
[334555345,1723203042745,-699.46,0.00021917,7]
[334555346,1723203042754,-500.0,0.00021917,7]
[334555347,1723203042764,-151.0,0.00021917,2]
[334555348,1723203042775,-500.0,0.00021917,7]
[334555349,1723203042785,-500.0,0.00021917,7]
[334555350,1723203042796,-2107.8,0.00021917,7]
[334555351,1723203042805,-500.0,0.00021917,7]
[334555352,1723203042814,-500.0,0.00021917,7]
[334555353,1723203042824,-260.436922,0.00021917,2]
[334555354,1723203042833,-260.436922,0.00021917,2]
[334555355,1723203042842,-260.436922,0.00021917,2]
[334555356,1723203042851,-260.436922,0.00021917,2]
[334555357,1723203042860,-260.436922,0.00021917,2]
[334555358,1723203042869,-260.436922,0.00021917,2]
[334555359,1723203042878,-260.436922,0.00021917,2]
[334555360,1723203042887,-500.0,0.00021917,7]
[334555361,1723203042898,-260.436922,0.00021917,2]
[334555362,1723203042908,-500.0,0.00021917,7]
[334555363,1723203042917,-260.436922,0.00021917,2]
[334555364,1723203042927,-260.436922,0.00021917,2]
[334555365,1723203042936,-514.60669039,0.00021917,7]
[334555366,1723203042945,-260.436922,0.00021917,2]
[334555367,1723203042954,-260.436922,0.00021917,2]
[334555368,1723203042963,-260.436922,0.00021917,2]
[334555369,1723203042972,-260.436922,0.00021917,2]
[334555370,1723203042981,-260.436922,0.00021917,2]
[334555371,1723203042990,-260.436922,0.00021917,2]
[334555372,1723203042999,-260.436922,0.00021917,2]
[334555373,1723203043011,-500.0,0.00021917,7]
[334555374,1723203043022,-260.436932,0.00021917,2]
[334555375,1723203043032,-500.0,0.00021917,7]
[334555376,1723203043043,-500.0,0.00021917,7]
[334555377,1723203043053,-500.0,0.00021917,7]
[334555378,1723203043063,-841.07,0.00021917,7]
[334555379,1723203043072,-500.0,0.00021917,7]
[334555380,1723203043082,-500.0,0.00021917,7]
[334555381,1723203043092,-350.518943,0.00021917,2]
[334555382,1723203043107,-350.518943,0.00021917,2]
[334555383,1723203043116,-500.0,0.00021917,7]
[334555384,1723203043125,-350.518943,0.00021917,2]
[334555385,1723203043137,-350.518943,0.00021917,2]
[334555386,1723203043154,-350.518943,0.00021917,2]
[334555387,1723203043163,-350.518943,0.00021917,2]
[334555388,1723203043173,-350.518943,0.00021917,2]
[334555389,1723203043183,-350.518943,0.00021917,2]
[334555391,1723203043193,-350.518943,0.00021917,2]
[334555393,1723203043201,-350.518943,0.00021917,2]
[334555395,1723203043211,-350.518943,0.00021917,2]
[334555397,1723203043220,-350.518943,0.00021917,2]
[334555399,1723203043229,-350.518943,0.00021917,2]
[334555401,1723203043239,-350.518943,0.00021917,2]
[334555403,1723203043248,-350.518943,0.00021917,2]
[334555405,1723203043259,-350.518943,0.00021917,2]
[334555406,1723203043268,-350.518943,0.00021917,2]
[334555407,1723203043278,-350.518935,0.00021917,2]
[334555408,1723203043287,-500.0,0.00021917,7]
[334555409,1723203043296,-622.23162807,0.00021917,7]
[334555410,1723203043305,-500.0,0.00021917,7]
[334555411,1723203043315,-500.0,0.00021917,7]
[334555412,1723203043324,-228.8096961,0.00021917,7]
[334555413,1723203043334,-500.0,0.00021917,7]
[334555414,1723203043344,-500.0,0.00021917,7]
[334555415,1723203043353,-500.0,0.00021917,7]
[334555416,1723203043362,-500.0,0.00021917,7]
[334555417,1723203043372,-500.0,0.00021917,7]
[334555418,1723203043381,-500.0,0.00021917,7]
[334555419,1723203043392,-500.0,0.00021917,7]
[334555420,1723203043401,-500.0,0.00021917,7]
[334555421,1723203043411,-500.0,0.00021917,7]
[334555422,1723203043420,-504.62257308,0.00021917,7]
[334555423,1723203043429,-985.61,0.00021917,7]
[334555424,1723203043438,-688.81,0.00021917,7]
[334555425,1723203043448,-500.0,0.00021917,7]
[334555426,1723203043458,-786.04,0.00021917,7]
[334555427,1723203043467,-500.0,0.00021917,7]
[334555428,1723203043477,-502.85320452,0.00021917,7]
[334555429,1723203043486,-640.33,0.00021917,7]
[334555430,1723203043496,-1092.0,0.00021917,7]
[334555431,1723203043505,-500.0,0.00021917,7]
[334555432,1723203043515,-500.0,0.00021917,7]
[334555433,1723203043524,-525.20448014,0.00021917,7]
[334555434,1723203043534,-556.79,0.00021917,7]
[334555435,1723203043543,-502.45583685,0.00021917,7]
[334555436,1723203043552,-500.0,0.00021917,7]
[334555437,1723203043563,-500.0,0.00021917,7]
[334555438,1723203043573,-577.11838901,0.00021917,7]
[334555439,1723203043582,-500.0,0.00021917,7]
[334555440,1723203043592,-500.0,0.00021917,7]
[334555441,1723203043601,-509.32972699,0.00021917,7]
[334555442,1723203043610,-500.0,0.00021917,7]
[334555443,1723203043620,-500.0,0.00021917,7]
[334555444,1723203043629,-3154.61,0.00021917,7]
[334555445,1723203043638,-535.51026162,0.00021917,7]
[334555446,1723203043649,-500.0,0.00021917,7]
[334555447,1723203043658,-500.0,0.00021917,7]
[334555448,1723203043668,-500.0,0.00021917,7]
[334555449,1723203043677,-1368.81,0.00021917,7]
[334555450,1723203043686,-500.0,0.00021917,7]
[334555451,1723203043695,-500.0,0.00021917,7]
[334555452,1723203043704,-500.0,0.00021917,7]
[334555453,1723203043713,-389.38799456,0.00021917,7]
[334555454,1723203043722,-500.0,0.00021917,7]
[334555455,1723203043732,-698.58,0.00021917,7]
[334555456,1723203043741,-500.0,0.00021917,2]
[334555457,1723203043750,-500.0,0.00021917,7]
[334555458,1723203043760,-500.0,0.00021917,7]
[334555459,1723203043769,-500.0,0.00021917,7]
[334555460,1723203043778,-534.87216668,0.00021917,7]
[334555461,1723203043787,-500.0,0.00021917,7]
[334555462,1723203043797,-529.6297699,0.00021917,7]
[334555463,1723203043806,-1118.25,0.00021917,7]
[334555464,1723203043816,-500.0,0.00021917,7]
[334555465,1723203043825,-500.0,0.00021917,7]
[334555466,1723203043835,-159.545597,0.00021917,2]
[334555467,1723203043844,-159.545597,0.00021917,2]
[334555468,1723203043853,-500.0,0.00021917,7]
[334555470,1723203043862,-159.545597,0.00021917,2]
[334555471,1723203043871,-159.545597,0.00021917,2]
[334555472,1723203043880,-500.0,0.00021917,7]
[334555473,1723203043890,-159.545597,0.00021917,2]
[334555474,1723203043899,-159.545597,0.00021917,2]
[334555475,1723203043908,-159.545597,0.00021917,2]
[334555476,1723203043918,-159.545597,0.00021917,2]
[334555477,1723203043928,-159.545597,0.00021917,2]
[334555478,1723203043937,-159.545597,0.00021917,2]
[334555479,1723203043946,-159.545597,0.00021917,2]
[334555480,1723203043955,-159.545597,0.00021917,2]
[334555481,1723203043964,-159.545597,0.00021917,2]
[334555482,1723203043974,-159.545597,0.00021917,2]
[334555483,1723203043983,-159.545597,0.00021917,2]
[334555484,1723203043992,-159.545597,0.00021917,2]
[334555485,1723203044001,-159.545597,0.00021917,2]
[334555486,1723203044010,-500.0,0.00021917,7]
[334555487,1723203044020,-159.545589,0.00021917,2]
[334555488,1723203044029,-504.81840076,0.00021917,7]
[334555489,1723203044039,-503.14794682,0.00021917,7]
[334555490,1723203044048,-506.89642407,0.00021917,7]
[334555491,1723203044056,-503.27403646,0.00021917,7]
[334555492,1723203044066,-500.0,0.00021917,7]
[334555493,1723203044075,-500.0,0.00021917,7]
[334555494,1723203044085,-399.12600418,0.00021917,7]
[334555495,1723203044095,-500.0,0.00021917,7]
[334555496,1723203044107,-700.96,0.00021917,7]
[334555497,1723203044117,-500.0,0.00021917,7]
[334555498,1723203044126,-500.0,0.00021917,7]
[334555499,1723203044137,-500.0,0.00021917,7]
[334555500,1723203044148,-506.0835356,0.00021917,7]
[334555501,1723203044158,-500.0,0.00021917,7]
[334555502,1723203044167,-500.0,0.00021917,7]
[334555503,1723203044178,-500.0,0.00021917,7]
[334555504,1723203044188,-500.0,0.00021917,7]
[334555505,1723203044197,-500.0,0.00021917,7]
[334555506,1723203044207,-500.0,0.00021917,7]
[334555507,1723203044216,-500.0,0.00021917,7]
[334555508,1723203044225,-504.05385096,0.00021917,7]
[334555509,1723203044235,-34.38749454,0.00021917,7]
[334555510,1723203044306,-151.0,0.00021897,2]
[334555511,1723203044317,-471.72094775,0.00021917,7]
[334555512,1723203044327,-500.0,0.00021917,7]
[334555513,1723203044337,-500.0,0.00021917,7]
[334555514,1723203044348,-587.78437651,0.00021917,7]
[334555515,1723203044359,-504.87556437,0.00021917,7]
[334555516,1723203044368,-546.8,0.00021917,7]
[334555517,1723203044378,-500.0,0.00021917,7]
[334555518,1723203044387,-500.0,0.00021917,7]
[334555519,1723203044399,-500.0,0.00021917,7]
[334555520,1723203044409,-604.01,0.00021917,7]
[334555521,1723203044418,-500.0,0.00021917,7]
[334555522,1723203044428,-500.0,0.00021917,7]
[334555523,1723203044437,-162.32267017,0.00021917,2]
[334555544,1723203352286,160.128352,0.00014247,2]
[334555546,1723203893446,249.735164,0.00014724,2]
[334555547,1723203894465,157.06225992,9.999e-05,2]
[334555548,1723203894528,568.56884199,9.999e-05,2]
[334555549,1723203929814,240.87977821,9.999e-05,2]
[334555550,1723203931216,534.02405776,0.0001212,2]
[334555551,1723203951726,342.05014288,9.999e-05,2]
[334555552,1723203963197,203.07644341,9.999e-05,2]
[334555553,1723203965128,506.48190828,9.999e-05,2]
[334555554,1723203966282,664.23911189,9.999e-05,2]
[334555555,1723203970254,154.82195475,9.999e-05,2]
[334555557,1723203991824,156.73199194,9.999e-05,2]
[334555559,1723204013461,443.23639848,9.999e-05,2]
[334555560,1723204020115,360.2830483,0.000148,2]
[334555562,1723204051182,154.77557542,9.999e-05,2]
[334555563,1723204072609,5000.0,0.0002333,30]
[334555564,1723204083236,156.85069415,9.999e-05,2]
[334555565,1723204091185,309.10340017,0.0001212,2]
[334555566,1723204094626,209.25602359,9.999e-05,2]
[334555567,1723204166123,-300.0,0.00015707,2]
[334555568,1723204166145,-233.0,0.00015707,2]
[334555569,1723204166167,-2770.3078456,0.00015708,2]
[334555601,1723204232004,-4427.73928975,0.0001561,2]
[334555603,1723204232014,-8421.49339493,0.00015708,2]
[334555605,1723204232023,-300.0,0.00015709,2]
[334555607,1723204232032,-6951.56692949,0.0001571,2]
[334555612,1723204238277,-14970.79293697,0.0001571,2]
[334555613,1723204238287,-21922.35986646,0.0001571,2]
[334555614,1723204238296,-154.77557542,0.00015751,2]
[334555615,1723204238306,-154.77557542,0.00015851,2]
[334555616,1723204238316,-223.71254295,0.00016095,2]
[334555617,1723204238326,-395.38689187,0.00016344,2]
[334555618,1723204238338,-420.0,0.0001728,2]
[334555619,1723204238348,-1364.15976013,0.00018,2]
[334555620,1723204238357,-4427.73928972,0.00018082,2]
[334555621,1723204238367,-587.0,0.00019008,2]
[334555622,1723204238377,-172.183004,0.00019178,2]
[334555623,1723204238386,-154.79103211,0.0002,2]
[334555624,1723204238396,-435.0,0.0002,2]
[334555625,1723204238406,-427.05357238,0.0002,2]
[334555626,1723204238415,-10493.07332189,0.0002,2]
[334555627,1723204238425,-336.38121722,0.0002,2]
[334555628,1723204238434,-154.77557542,0.0002,2]
[334555629,1723204238443,-294.28393168,0.0002,2]
[334555630,1723204238454,-1444.60456197,0.0002028,2]
[334555631,1723204238467,-154.77557542,0.0002028,2]
[334555633,1723204238477,-823.0,0.00020909,2]
[334555635,1723204238487,-309.53684837,0.00021,2]
[334555637,1723204238670,-1000.0,0.00021,21]
[334555638,1723204238681,-297.15758286,0.00021,2]
[334555639,1723204238691,-207.2250634,0.0002137,2]
[334555640,1723204238701,-249.69417294,0.00021591,2]
[334555641,1723204238710,-3134.47234162,0.00021696,2]
[334555642,1723204238720,-3134.4723416,0.00021726,2]
[334555643,1723204238730,-207.2250634,0.00021756,2]
[334555644,1723204238740,-206.894743,0.00021756,2]
[334555645,1723204238750,-207.2250634,0.00021756,2]
[334555646,1723204238760,-207.2250634,0.00021756,2]
[334555647,1723204238769,-207.2250634,0.00021756,2]
[334555648,1723204238779,-3134.4723416,0.00021757,2]
[334555649,1723204238790,-3134.4723416,0.00021787,2]
[334555650,1723204238799,-295.65829708,0.00021789,2]
[334555651,1723204238810,-61245.9977925,0.0002179,3]
[334555652,1723204238819,-91741.27686801,0.000218,2]
[334555653,1723204238829,-12640.38108741,0.00021807,2]
[334555654,1723204238840,-3134.4723416,0.00021817,2]
[334555655,1723204238850,-52953.22668054,0.00021885,11]
[334555656,1723204238859,-61245.9977925,0.00021886,3]
[334555657,1723204238869,-250.276668,0.00021886,2]
[334555658,1723204238879,-151.0,0.00021886,2]
[334555659,1723204238889,-151.0,0.00021886,2]
[334555660,1723204238899,-151.0,0.00021886,2]
[334555661,1723204238908,-315.909709,0.00021886,2]
[334555662,1723204238918,-315.909709,0.00021886,2]
[334555663,1723204238928,-151.0,0.00021896,2]
[334555664,1723204238938,-781.404683,0.00021896,2]
[334555665,1723204238947,-781.404683,0.00021896,2]
[334555666,1723204238957,-151.0,0.00021896,2]
[334555667,1723204238968,-700.308581,0.00021896,2]
[334555668,1723204238978,-700.308581,0.00021896,2]
[334555669,1723204238988,-151.0,0.00021896,2]
[334555670,1723204238998,-438.810604,0.00021896,2]
[334555671,1723204239010,-151.0,0.00021896,2]
[334555672,1723204239019,-438.810604,0.00021896,2]
[334555673,1723204239028,-231.598633,0.00021896,2]
[334555674,1723204239039,-231.598633,0.00021896,2]
[334555675,1723204239050,-151.0,0.00021896,2]
[334555676,1723204239062,-233.660552,0.00021896,2]
[334555677,1723204239073,-233.660552,0.00021896,2]
[334555678,1723204239084,-350.518943,0.00021896,2]
[334555679,1723204239093,-350.518943,0.00021896,2]
[334555680,1723204239103,-1207.609527,0.00021896,2]
[334555681,1723204239114,-1207.609527,0.00021896,2]
[334555682,1723204239125,-260.436922,0.00021896,2]
[334555683,1723204239137,-260.436922,0.00021896,2]
[334555684,1723204239147,-3010.878392,0.00021896,2]
[334555685,1723204239159,-3010.878392,0.00021896,2]
[334555686,1723204239169,-151.0,0.00021896,2]
[334555687,1723204239179,-151.0,0.00021896,2]
[334555688,1723204239189,-315.909709,0.00021896,2]
[334555689,1723204239199,-315.909709,0.00021896,2]
[334555690,1723204239210,-150.112233,0.000219,3]
[334555691,1723204239221,-150.112233,0.000219,2]
[334555692,1723204239231,-150.112233,0.000219,2]
[334555693,1723204239240,-150.112233,0.000219,5]
[334555694,1723204239250,-150.112234,0.000219,4]
[334555695,1723204239260,-261.63666073,0.00021906,2]
[334555696,1723204239270,-500.0,0.00021906,2]
[334555697,1723204239280,-500.0,0.00021906,2]
[334555698,1723204239290,-500.0,0.00021906,2]
[334555699,1723204239300,-500.0,0.00021906,2]
[334555700,1723204239310,-500.0,0.00021906,2]
[334555701,1723204239320,-457.45468198,0.00021906,2]
[334555702,1723204239329,-500.0,0.00021906,2]
[334555703,1723204239339,-500.0,0.00021906,2]
[334555704,1723204239348,-280.68512444,0.00021906,2]
[334555705,1723204239357,-500.0,0.00021906,2]
[334555706,1723204239367,-500.0,0.00021906,2]
[334555707,1723204239377,-500.0,0.00021906,2]
[334555708,1723204239387,-500.0,0.00021906,2]
[334555709,1723204239396,-500.0,0.00021906,2]
[334555710,1723204239406,-500.0,0.00021906,2]
[334555711,1723204239416,-500.0,0.00021906,2]
[334555712,1723204239427,-500.0,0.00021906,2]
[334555713,1723204239437,-500.0,0.00021906,2]
[334555714,1723204239448,-500.0,0.00021906,2]
[334555715,1723204239460,-500.0,0.00021906,2]
[334555716,1723204239474,-500.0,0.00021906,2]
[334555717,1723204239483,-500.0,0.00021906,2]
[334555718,1723204239493,-500.0,0.00021906,2]
[334555719,1723204239503,-500.0,0.00021906,2]
[334555720,1723204239515,-320.18642466,0.00021906,2]
[334555721,1723204239526,-500.0,0.00021906,2]
[334555722,1723204239536,-500.0,0.00021906,2]
[334555723,1723204239548,-500.0,0.00021906,2]
[334555724,1723204239558,-500.0,0.00021906,2]
[334555725,1723204239567,-500.0,0.00021906,2]
[334555726,1723204239575,-500.0,0.00021906,2]
[334555727,1723204239586,-500.0,0.00021906,2]
[334555728,1723204239595,-500.0,0.00021906,2]
[334555729,1723204239604,-367.23914918,0.00021906,2]
[334555730,1723204239614,-260.436922,0.00021906,2]
[334555731,1723204239624,-260.436922,0.00021906,2]
[334555732,1723204239633,-3010.878392,0.00021906,2]
[334555734,1723204239643,-3010.878392,0.00021906,2]
[334555735,1723204239652,-30622.9988963,0.00021907,3]
[334555737,1723204239663,-60325.47662599,0.00021907,3]
[334555743,1723204240274,-4427.73928972,0.00020554,2]
[334555744,1723204240284,-159.545597,0.00021886,2]
[334555745,1723204240294,-159.545597,0.00021896,2]
[334555746,1723204240303,-31543.52006281,0.00021907,3]
[334555747,1723204240312,-151.0,0.00021907,2]
[334555748,1723204240322,-151.0,0.00021907,2]
[334555749,1723204240335,-151.0,0.00021907,2]
[334555750,1723204240344,-1032.144965,0.00021907,2]
[334555751,1723204240354,-1032.144965,0.00021907,2]
[334555752,1723204240364,-151.0,0.00021907,2]
[334555753,1723204240373,-151.0,0.00021907,2]
[334555754,1723204240382,-320.224247,0.00021907,2]
[334555755,1723204240392,-320.224247,0.00021907,2]
[334555756,1723204240401,-781.404683,0.00021907,2]
[334555757,1723204240411,-781.404683,0.00021907,2]
[334555758,1723204240421,-781.404683,0.00021907,2]
[334555759,1723204240432,-781.404683,0.00021907,2]
[334555760,1723204240443,-151.0,0.00021907,2]
[334555761,1723204240452,-700.308581,0.00021907,2]
[334555762,1723204240465,-171.052786,0.00021907,2]
[334555763,1723204240476,-700.308581,0.00021907,2]
[334555764,1723204240485,-151.0,0.00021907,2]
[334555765,1723204240494,-700.308581,0.00021907,2]
[334555766,1723204240503,-700.308581,0.00021907,2]
[334555767,1723204240514,-151.0,0.00021907,2]
[334555768,1723204240526,-151.0,0.00021907,2]
[334555769,1723204240536,-151.0,0.00021907,2]
[334555770,1723204240548,-438.810604,0.00021907,2]
[334555771,1723204240558,-438.810604,0.00021907,2]
[334555772,1723204240567,-438.810604,0.00021907,2]
[334555773,1723204240579,-438.810604,0.00021907,2]
[334555774,1723204240592,-231.598633,0.00021907,2]
[334555775,1723204240603,-231.598633,0.00021907,2]
[334555776,1723204240614,-231.598633,0.00021907,2]
[334555777,1723204240625,-231.598633,0.00021907,2]
[334555778,1723204240636,-233.660552,0.00021907,2]
[334555779,1723204240646,-233.660552,0.00021907,2]
[334555780,1723204240656,-233.660552,0.00021907,2]
[334555781,1723204240668,-233.660552,0.00021907,2]
[334555782,1723204240677,-350.518943,0.00021907,2]
[334555783,1723204240696,-350.518943,0.00021907,2]
[334555784,1723204240705,-350.518943,0.00021907,2]
[334555785,1723204240715,-350.518943,0.00021907,2]
[334555786,1723204240725,-1207.609527,0.00021907,2]
[334555787,1723204240734,-1207.609527,0.00021907,2]
[334555788,1723204240743,-1207.609527,0.00021907,2]
[334555789,1723204240753,-1207.609527,0.00021907,2]
[334555790,1723204240762,-260.436922,0.00021907,2]
[334555791,1723204240772,-260.436922,0.00021907,2]
[334555792,1723204240781,-3010.878392,0.00021907,2]
[334555793,1723204240791,-3010.878392,0.00021907,2]
[334555794,1723204240800,-151.0,0.00021907,2]
[334555795,1723204240809,-151.0,0.00021907,2]
[334555796,1723204240819,-151.0,0.00021907,2]
[334555798,1723204240829,-151.0,0.00021907,2]
[334555800,1723204240840,-315.909709,0.00021907,2]
[334555801,1723204240849,-315.909709,0.00021907,2]
[334555802,1723204240859,-315.909709,0.00021907,2]
[334555803,1723204240869,-315.909709,0.00021907,2]
[334555804,1723204240878,-159.545597,0.00021907,2]
[334555805,1723204240888,-150.01,0.00021916,2]
[334555806,1723204240897,-2993.10206773,0.00021916,2]
[334555807,1723204240907,-23212.09711903,0.00021917,11]
[334555822,1723204365610,160.294877,0.00014247,2]
[334555823,1723204384628,500.0,0.0002633,120]
[334555824,1723204385406,500.0,0.0002633,120]
[334555825,1723204386196,500.0,0.0002633,120]
[334555826,1723204386970,500.0,0.0002633,120]
[334555827,1723204387719,500.0,0.0002633,120]
[334555828,1723204388469,500.0,0.0002633,120]
[334555829,1723204389216,521.43,0.0002633,120]
[334555931,1723205382991,160.294877,0.00014247,2]
[334555957,1723205432287,-1364.15976013,0.00018316,2]
[334555959,1723205432296,-932.61979221,0.00018601,2]
[334555960,1723205432305,-3037.51125677,0.00018879,2]
[334555961,1723205432315,-300.0,0.00019999,2]
[334555963,1723205432324,-10493.07332189,0.0002,2]
[334555965,1723205432334,-294.28393168,0.0002,2]
[334555967,1723205432343,-166.46278196,0.0002,2]
[334555968,1723205432353,-204.47704379,0.0002,2]
[334555969,1723205432362,-336.38121722,0.0002,2]
[334555970,1723205432371,-172.183004,0.00020138,2]
[334555971,1723205432380,-250.0000003,0.00020329,2]
[334555972,1723205432389,-154.77557542,0.00020721,2]
[334555974,1723205432398,-296.9978584,0.00021,2]
[334555976,1723205432407,-500.0,0.00021165,2]
[334555978,1723205432417,-855.41705941,0.00021438,2]
[334555980,1723205432426,-2767.33705611,0.000218,2]
[334555982,1723205432435,-536.52,0.00021887,3]
[334555984,1723205432447,-32779.31086485,0.00021897,3]
[334556009,1723205440417,-2277.87309117,0.00019177,3]
[334556010,1723205440428,-223.71254295,0.00021805,2]
[334556011,1723205440438,-35902.41237164,0.00021897,3]
[334556026,1723205443374,-67.42386797,0.00021897,3]
[334556071,1723205677881,1000.0,0.00027,120]
[334556077,1723205882119,160.037414,0.00014247,2]
[334556092,1723206335118,160.294877,0.00014247,2]
[334556291,1723206638721,-301.1738371,0.00016309,2]
[334556294,1723206638731,-912.76636685,0.00017269,2]
[334556296,1723206638740,-359.30109605,0.00019256,2]
[334556330,1723206640513,-1004.85866408,0.00019256,2]
[334556331,1723206640525,-336.38121722,0.0002,2]
[334556332,1723206640535,-293.34672077,0.0002,2]
[334556333,1723206640546,-154.77557542,0.0002,2]
[334556334,1723206640558,-154.77557542,0.00020721,2]
[334556335,1723206640570,-1000.0,0.00021,21]
[334556336,1723206640580,-223.71254295,0.00021011,2]
[334556337,1723206640590,-153.0,0.00021096,2]